fUSD/lending_fUSD_20240805
["ID","MTS","AMOUNT","RATE_DAILY","PERIOD"]
[334223429,1722844301266,-500.0,0.00044109,60]
[334223430,1722844301308,-573.1,0.00044109,60]
[334223431,1722844301352,-500.0,0.00044109,60]
[334223432,1722844301397,-1000.0,0.00044109,60]
[334223433,1722844301440,-780.68,0.00044109,60]
[334223434,1722844301484,-2283.78,0.00044109,60]
[334223435,1722844301526,-500.0,0.00044109,60]
[334223436,1722844301567,-500.0,0.00044109,60]
[334223437,1722844301607,-500.0,0.00044109,60]
[334223438,1722844301648,-500.0,0.00044109,60]
[334223439,1722844301689,-500.0,0.00044109,60]
[334223440,1722844301729,-500.0,0.00044109,60]
[334223441,1722844301770,-541.27,0.00044109,60]
[334223442,1722844301810,-500.0,0.00044109,60]
[334223443,1722844301852,-500.0,0.00044109,60]
[334223444,1722844301896,-2155.96,0.00044109,60]
[334223445,1722844301943,-542.87,0.00044109,60]
[334223446,1722844301986,-1149.74,0.00044109,60]
[334223447,1722844302029,-500.0,0.00044109,60]
[334223448,1722844302071,-500.0,0.00044109,60]
[334223449,1722844302111,-500.0,0.00044109,60]
[334223450,1722844302152,-500.0,0.00044109,60]
[334223451,1722844302193,-533.66,0.00044109,60]
[334223452,1722844302234,-834.26,0.00044109,60]
[334223453,1722844302275,-1488.37,0.00044109,60]
[334223454,1722844302316,-1373.07,0.00044109,60]
[334223455,1722844302583,-4234.96,0.00044109,60]
[334223456,1722844302625,-477.80904635,0.00044109,60]
[334223457,1722844302664,-752.69,0.00044109,60]
[334223458,1722844302701,-500.0,0.00044109,60]
[334223459,1722844302738,-587.85,0.00044109,60]
[334223460,1722844302775,-500.0,0.00044109,60]
[334223461,1722844302812,-500.0,0.00044109,60]
[334223462,1722844302851,-500.0,0.00044109,60]
[334223463,1722844302889,-705.68,0.00044109,60]
[334223464,1722844302927,-500.0,0.00044109,60]
[334223465,1722844302970,-942.2,0.00044109,60]
[334223466,1722844303008,-500.0,0.00044109,60]
[334223467,1722844303046,-500.0,0.00044109,60]
[334223468,1722844303083,-500.0,0.00044109,60]
[334223469,1722844303120,-500.0,0.00044109,60]
[334223470,1722844303160,-920.47,0.00044109,60]
[334223471,1722844303196,-500.0,0.00044109,60]
[334223472,1722844303233,-500.0,0.00044109,60]
[334223473,1722844303269,-1642.38,0.00044109,60]
[334223474,1722844303306,-1494.69,0.00044109,60]
[334223475,1722844303342,-500.0,0.00044109,60]
[334223476,1722844303376,-500.0,0.00044109,60]
[334223477,1722844303414,-500.0,0.00044109,60]
[334223478,1722844303455,-894.27,0.00044109,60]
[334223479,1722844303491,-611.26,0.00044109,60]
[334223480,1722844303526,-668.81,0.00044109,60]
[334223481,1722844303563,-500.0,0.00044109,60]
[334223482,1722844303598,-500.0,0.00044109,60]
[334223483,1722844303636,-827.23,0.00044109,60]
[334223484,1722844303673,-387.38,0.00044109,60]
[334223485,1722844303711,-500.0,0.00044109,60]
[334223486,1722844303749,-998.89,0.00044109,60]
[334223487,1722844303790,-756.7,0.00044109,60]
[334223488,1722844303828,-500.0,0.00044109,60]
[334223489,1722844303868,-689.99,0.00044109,60]
[334223490,1722844303911,-500.0,0.00044109,60]
[334223491,1722844303951,-500.0,0.00044109,60]
[334223492,1722844303989,-646.36,0.00044109,60]
[334223493,1722844304028,-500.0,0.00044109,60]
[334223494,1722844304066,-500.0,0.00044109,60]
[334223495,1722844304105,-1058.87,0.00044109,60]
[334223496,1722844304148,-1016.88,0.00044109,60]
[334223497,1722844304190,-831.1,0.00044109,60]
[334223498,1722844304233,-500.0,0.00044109,60]
[334223499,1722844304272,-733.55,0.00044109,60]
[334223500,1722844304311,-923.06,0.00044109,60]
[334223501,1722844304349,-500.0,0.00044109,60]
[334223502,1722844304388,-500.0,0.00044109,60]
[334223503,1722844304428,-500.0,0.00044109,60]
[334223504,1722844304479,-500.0,0.00044109,60]
[334223505,1722844304518,-1988.88,0.00044109,60]
[334223506,1722844304556,-667.55,0.00044109,60]
[334223507,1722844304593,-874.73,0.00044109,60]
[334223508,1722844304631,-500.0,0.00044109,60]
[334223509,1722844304669,-2759.05,0.00044109,60]
[334223510,1722844304707,-665.68,0.00044109,60]
[334223511,1722844304746,-215.24470583,0.00044109,60]
[334223512,1722844304788,-715.58,0.00044109,60]
[334223513,1722844304831,-1540.53,0.00044109,60]
[334223514,1722844304874,-500.0,0.00044109,60]
[334223515,1722844304918,-1382.52,0.00044109,60]
[334223516,1722844304961,-500.0,0.00044109,60]
[334223517,1722844305002,-500.0,0.00044109,60]
[334223518,1722844305044,-2121.04,0.00044109,60]
[334223519,1722844305085,-1078.21,0.00044109,60]
[334223520,1722844305126,-500.0,0.00044109,60]
[334223521,1722844305167,-500.0,0.00044109,60]
[334223522,1722844305208,-2540.04,0.00044109,60]
[334223523,1722844305248,-936.81,0.00044109,60]
[334223524,1722844305290,-1273.7,0.00044109,60]
[334223525,1722844305330,-610.66784106,0.00044109,60]
[334223526,1722844305371,-500.0,0.00044109,60]
[334223527,1722844305414,-1804.22,0.00044109,60]
[334223528,1722844305455,-500.0,0.00044109,60]
[334223529,1722844305496,-500.0,0.00044109,60]
[334223530,1722844305536,-491.45,0.00044109,60]
[334223531,1722844305576,-996.63,0.00044109,60]
[334223532,1722844305616,-599.32,0.00044109,60]
[334223533,1722844305656,-928.49,0.00044109,60]
[334223534,1722844305697,-500.0,0.00044109,60]
[334223535,1722844305737,-532.81,0.00044109,60]
[334223536,1722844305779,-2278.1,0.00044109,60]
[334223537,1722844305824,-130.42906426,0.00044383,60]
[334223538,1722844305867,-500.0,0.00044383,60]
[334223539,1722844305908,-639.44,0.00044383,60]
[334223540,1722844305951,-500.0,0.00044383,60]
[334223541,1722844305992,-500.0,0.00044383,60]
[334223542,1722844306035,-508.49987052,0.00044383,60]
[334223543,1722844306078,-3887.62,0.00044383,60]
[334223544,1722844306120,-1985.85,0.00044383,60]
[334223545,1722844306163,-5630.35,0.00044383,60]
[334223546,1722844306203,-2205.72,0.00044383,60]
[334223547,1722844306244,-352.06398755,0.00044383,60]
[334223548,1722844306285,-707.01,0.00044383,60]
[334223549,1722844306325,-691.76,0.00044383,60]
[334223550,1722844306366,-500.0,0.00044383,60]
[334223551,1722844306407,-500.0,0.00044383,60]
[334223552,1722844306448,-500.0,0.00044383,60]
[334223553,1722844306488,-725.62,0.00044383,60]
[334223554,1722844306529,-333.66,0.00044383,60]
[334223555,1722844306568,-500.0,0.00044383,60]
[334223556,1722844306609,-847.23,0.00044383,60]
[334223557,1722844306649,-500.0,0.00044383,60]
[334223558,1722844306691,-3110.41,0.00044383,60]
[334223559,1722844306974,-500.0,0.00044383,60]
[334223560,1722844307019,-500.0,0.00044383,60]
[334223561,1722844307064,-500.0,0.00044383,60]
[334223562,1722844307112,-1782.34,0.00044383,60]
[334223563,1722844307157,-528.7,0.00044383,60]
[334223564,1722844307199,-253.20976883,0.00044383,60]
[334223565,1722844307241,-1247.12,0.00044383,60]
[334223566,1722844307283,-500.0,0.00044383,60]
[334223567,1722844307324,-1523.81,0.00044383,60]
[334223568,1722844307362,-1076.07,0.00044383,60]
[334223569,1722844307401,-2766.63,0.00044383,60]
[334223570,1722844307445,-2040.45,0.00044383,60]
[334223571,1722844307487,-500.0,0.00044383,60]
[334223572,1722844307528,-1399.31,0.00044383,60]
[334223573,1722844307570,-4562.1,0.00044383,60]
[334223574,1722844307611,-500.0,0.00044383,60]
[334223575,1722844307651,-985.64,0.00044383,60]
[334223576,1722844307694,-505.25636938,0.00044383,60]
[334223577,1722844307732,-500.0,0.00044383,60]
[334223578,1722844307772,-4657.12,0.00044383,60]
[334223579,1722844307810,-500.0,0.00044383,60]
[334223580,1722844307849,-10748.86,0.00044383,60]
[334223581,1722844307887,-8930.26,0.00044383,60]
[334223582,1722844307924,-500.0,0.00044383,60]
[334223583,1722844307964,-1286.75,0.00044383,60]
[334223584,1722844308002,-2181.61,0.00044383,60]
[334223585,1722844308045,-500.0,0.00044383,60]
[334223586,1722844308083,-500.0,0.00044383,60]
[334223587,1722844308122,-500.0,0.00044383,60]
[334223588,1722844308164,-4897.88,0.00044383,60]
[334223589,1722844308205,-500.0,0.00044383,60]
[334223590,1722844308246,-1667.02,0.00044383,60]
[334223591,1722844308284,-2301.81,0.00044383,60]
[334223592,1722844308322,-500.0,0.00044383,60]
[334223593,1722844308360,-488.87319371,0.00044383,60]
[334223594,1722844308401,-2420.28,0.00044383,60]
[334223595,1722844308442,-500.0,0.00044383,60]
[334223596,1722844308481,-500.0,0.00044383,60]
[334223597,1722844308519,-1246.49,0.00044383,60]
[334223598,1722844308556,-500.0,0.00044383,60]
[334223599,1722844308593,-500.0,0.00044383,60]
[334223600,1722844308631,-500.0,0.00044383,60]
[334223601,1722844308672,-23439.12,0.00044383,60]
[334223602,1722844308718,-19736.54,0.00044383,60]
[334223603,1722844308759,-500.0,0.00044383,60]
[334223604,1722844308799,-500.0,0.00044383,60]
[334223605,1722844308840,-2759.48,0.00044383,60]
[334223606,1722844308881,-1049.1,0.00044383,60]
[334223607,1722844308921,-2719.05,0.00044383,60]
[334223608,1722844308960,-6755.14,0.00044383,60]
[334223609,1722844309000,-500.0,0.00044383,60]
[334223610,1722844309039,-500.0,0.00044383,60]
[334223611,1722844309078,-500.0,0.00044383,60]
[334223612,1722844309118,-6109.96,0.00044383,60]
[334223613,1722844309159,-500.0,0.00044383,60]
[334223614,1722844309201,-500.0,0.00044383,60]
[334223615,1722844309241,-500.0,0.00044383,60]
[334223616,1722844309281,-1044.39,0.00044383,60]
[334223617,1722844309319,-500.0,0.00044383,60]
[334223618,1722844309357,-500.0,0.00044383,60]
[334223619,1722844309395,-1029.22,0.00044383,60]
[334223620,1722844309437,-2915.91,0.00044383,60]
[334223621,1722844309478,-500.0,0.00044383,60]
[334223622,1722844309517,-973.24,0.00044383,60]
[334223623,1722844309555,-1904.51,0.00044383,60]
[334223624,1722844309593,-500.0,0.00044383,60]
[334223625,1722844309630,-972.76,0.00044383,60]
[334223626,1722844309668,-2207.89,0.00044383,60]
[334223627,1722844309707,-7612.64,0.00044383,60]
[334223628,1722844309745,-1204.14,0.00044383,60]
[334223629,1722844309783,-722.98,0.00044383,60]
[334223630,1722844309821,-950.18,0.00044383,60]
[334223631,1722844309859,-500.0,0.00044383,60]
[334223632,1722844309898,-500.0,0.00044383,60]
[334223633,1722844309941,-2654.38,0.00044383,60]
[334223634,1722844309983,-1350.71,0.00044383,60]
[334223635,1722844310023,-500.0,0.00044383,60]
[334223636,1722844310063,-500.0,0.00044383,60]
[334223637,1722844310103,-4543.71,0.00044383,60]
[334223638,1722844310142,-500.0,0.00044383,60]
[334223639,1722844310182,-221.85431471,0.00044383,60]
[334223640,1722844310224,-1073.31,0.00044383,60]
[334223641,1722844310264,-815.44,0.00044383,60]
[334223642,1722844310302,-35602.99,0.00044383,60]
[334223643,1722844310339,-2232.06,0.00044383,60]
[334223644,1722844310376,-500.0,0.00044383,60]
[334223645,1722844310414,-2355.5,0.00044383,60]
[334223646,1722844310450,-500.0,0.00044383,60]
[334223647,1722844310488,-5731.34,0.00044383,60]
[334223648,1722844310525,-999.95,0.00044383,60]
[334223649,1722844310561,-500.0,0.00044383,60]
[334223650,1722844310599,-3551.44,0.00044383,60]
[334223651,1722844310638,-500.0,0.00044383,60]
[334223652,1722844310676,-689.7,0.00044383,60]
[334223653,1722844310719,-500.0,0.00044383,60]
[334223654,1722844310758,-5012.01,0.00044383,60]
[334223655,1722844310798,-500.0,0.00044383,60]
[334223656,1722844310839,-500.0,0.00044383,60]
[334223657,1722844310881,-1927.45,0.00044383,60]
[334223658,1722844310923,-4228.37,0.00044383,60]
[334223659,1722844310963,-500.0,0.00044383,60]
[334223660,1722844311006,-500.0,0.00044383,60]
[334223661,1722844311050,-500.0,0.00044383,60]
[334223662,1722844311324,-13371.27,0.00044383,60]
[334223663,1722844311366,-798.42,0.00044383,60]
[334223664,1722844311409,-500.0,0.00044383,60]
[334223665,1722844311452,-4811.77,0.00044383,60]
[334223666,1722844311493,-2666.72,0.00044383,60]
[334223667,1722844311533,-261.15592354,0.00044383,60]
[334223668,1722844311572,-982.02,0.00044383,60]
[334223669,1722844311612,-500.0,0.00044383,60]
[334223670,1722844311652,-4155.7,0.00044383,60]
[334223671,1722844311695,-500.0,0.00044383,60]
[334223672,1722844311735,-627.63444434,0.00044383,60]
[334223673,1722844311774,-10481.84,0.00044383,60]
[334223674,1722844311813,-853.32,0.00044383,60]
[334223675,1722844311852,-500.0,0.00044383,60]
[334223676,1722844311891,-515.63,0.00044383,60]
[334223677,1722844311930,-2311.37,0.00044383,60]
[334223678,1722844311973,-628.75,0.00044383,60]
[334223679,1722844312016,-590.18933579,0.00044383,60]
[334223680,1722844312058,-1077.38,0.00044383,60]
[334223681,1722844312101,-6436.58,0.00044383,60]
[334223682,1722844312143,-500.0,0.00044383,60]
[334223683,1722844312194,-500.0,0.00044383,60]
[334223684,1722844312237,-667.09,0.00044383,60]
[334223685,1722844312278,-500.0,0.00044383,60]
[334223686,1722844312318,-1311.27,0.00044383,60]
[334223687,1722844312359,-3775.88,0.00044383,60]
[334223688,1722844312399,-2022.76,0.00044383,60]
[334223689,1722844312443,-833.07,0.00044383,60]
[334223690,1722844312484,-1082.46,0.00044383,60]
[334223691,1722844312524,-748.5,0.00044383,60]
[334223692,1722844312563,-500.0,0.00044383,60]
[334223693,1722844312601,-500.0,0.00044383,60]
[334223694,1722844312637,-500.0,0.00044383,60]
[334223695,1722844312675,-500.0,0.00044383,60]
[334223696,1722844312715,-817.97,0.00044383,60]
[334223697,1722844312754,-4751.34,0.00044383,60]
[334223698,1722844312794,-19511.61,0.00044383,60]
[334223699,1722844312835,-1869.6,0.00044383,60]
[334223700,1722844312877,-8907.22,0.00044383,60]
[334223701,1722844312918,-500.0,0.00044383,60]
[334223702,1722844312966,-3836.48,0.00044383,60]
[334223703,1722844313007,-500.0,0.00044383,60]
[334223704,1722844313048,-620.53450663,0.00044383,60]
[334223705,1722844313090,-500.0,0.00044383,60]
[334223706,1722844313131,-500.0,0.00044383,60]
[334223707,1722844313175,-3712.48,0.00044383,60]
[334223708,1722844313222,-1299.96,0.00044383,60]
[334223709,1722844313261,-1514.1,0.00044383,60]
[334223710,1722844313299,-500.0,0.00044383,60]
[334223711,1722844313337,-500.0,0.00044383,60]
[334223712,1722844313376,-500.0,0.00044383,60]
[334223713,1722844313417,-500.0,0.00044383,60]
[334223714,1722844313457,-500.0,0.00044383,60]
[334223715,1722844313495,-500.0,0.00044383,60]
[334223716,1722844313534,-6147.24,0.00044383,60]
[334223717,1722844313577,-208.60575376,0.00044383,60]
[334223718,1722844313618,-500.0,0.00044383,60]
[334223719,1722844313659,-1120.75,0.00044383,60]
[334223720,1722844313701,-1083.77,0.00044383,60]
[334223721,1722844313744,-545.43,0.00044383,60]
[334223722,1722844313785,-500.0,0.00044383,60]
[334223723,1722844313828,-5685.69,0.00044383,60]
[334223724,1722844313871,-500.0,0.00044383,60]
[334223725,1722844313914,-819.79,0.00044383,60]
[334223726,1722844313956,-2559.9,0.00044383,60]
[334223727,1722844314002,-500.0,0.00044383,60]
[334223728,1722844314045,-7634.34,0.00044383,60]
[334223729,1722844314089,-757.51,0.00044383,60]
[334223730,1722844314129,-500.0,0.00044383,60]
[334223731,1722844314170,-528.67881693,0.00044383,60]
[334223732,1722844314209,-1691.52,0.00044383,120]
[334223733,1722844314248,-3039.42,0.00044383,60]
[334223734,1722844314286,-762.12,0.00044383,60]
[334223735,1722844314324,-5715.08,0.00044383,60]
[334223736,1722844314362,-500.0,0.00044383,60]
[334223737,1722844314401,-942.51,0.00044383,60]
[334223738,1722844314445,-500.0,0.00044383,60]
[334223739,1722844314486,-513.57,0.00044383,60]
[334223740,1722844314525,-500.0,0.00044383,60]
[334223741,1722844314563,-500.0,0.00044383,60]
[334223742,1722844314601,-500.0,0.00044383,60]
[334223743,1722844314642,-1701.93,0.00044383,60]
[334223744,1722844314683,-1538.2,0.00044383,60]
[334223745,1722844314730,-500.0,0.00044383,60]
[334223746,1722844314773,-1501.63,0.00044383,60]
[334223747,1722844314818,-1734.86,0.00044383,60]
[334223748,1722844314863,-3873.01,0.00044383,60]
[334223749,1722844314906,-1000.0,0.00044383,120]
[334223750,1722844314960,-500.0,0.00044383,60]
[334223751,1722844315010,-3131.39,0.00044383,60]
[334223752,1722844315054,-500.0,0.00044383,60]
[334223753,1722844315098,-2000.99,0.00044383,60]
[334223754,1722844315142,-500.0,0.00044383,60]
[334223755,1722844315187,-500.0,0.00044383,60]
[334223756,1722844315243,-2258.42,0.00044383,60]
[334223757,1722844315292,-526.22,0.00044383,60]
[334223758,1722844315333,-539.06,0.00044383,60]
[334223759,1722844315374,-994.12,0.00044383,60]
[334223760,1722844315415,-500.0,0.00044383,60]
[334223761,1722844315457,-4671.38,0.00044383,60]
[334223762,1722844315498,-2531.92,0.00044383,60]
[334223763,1722844315538,-795.53,0.00044383,60]
[334223764,1722844315578,-2898.53,0.00044383,60]
[334223765,1722844315619,-1013.78,0.00044383,60]
[334223766,1722844315882,-4484.07,0.00044383,60]
[334223767,1722844315927,-1156.86,0.00044383,60]
[334223768,1722844315976,-2423.98,0.00044383,60]
[334223769,1722844316021,-500.0,0.00044383,60]
[334223770,1722844316064,-250.7160584,0.00044383,60]
[334223771,1722844316107,-2009.55,0.00044383,60]
[334223772,1722844316152,-1992.06,0.00044383,60]
[334223773,1722844316198,-1305.57,0.00044383,60]
[334223774,1722844316239,-6732.94,0.00044383,60]
[334223775,1722844316279,-500.0,0.00044383,60]
[334223776,1722844316318,-577.56,0.00044383,60]
[334223777,1722844316358,-12434.36,0.00044383,60]
[334223778,1722844316399,-500.0,0.00044383,60]
[334223779,1722844316441,-303.57473385,0.00044383,60]
[334223780,1722844316483,-500.0,0.00044383,60]
[334223781,1722844316523,-500.0,0.00044383,60]
[334223782,1722844316563,-500.0,0.00044383,60]
[334223783,1722844316603,-65925.18,0.00044383,60]
[334223784,1722844316642,-897.39,0.00044383,60]
[334223785,1722844316680,-3825.24,0.00044383,60]
[334223786,1722844316722,-3070.41,0.00044383,60]
[334223787,1722844316763,-500.0,0.00044383,60]
[334223788,1722844316804,-594.21,0.00044383,60]
[334223789,1722844316846,-34749.06,0.00044383,60]
[334223790,1722844316888,-365.55198389,0.00044383,60]
[334223791,1722844316930,-649.35,0.00044383,60]
[334223792,1722844316978,-3343.68,0.00044383,60]
[334223793,1722844317022,-500.0,0.00044383,60]
[334223794,1722844317065,-1067.12,0.00044383,60]
[334223795,1722844317108,-500.0,0.00044383,60]
[334223796,1722844317153,-1581.34,0.00044383,60]
[334223797,1722844317200,-500.0,0.00044383,60]
[334223798,1722844317244,-500.0,0.00044383,60]
[334223799,1722844317287,-6415.57,0.00044383,60]
[334223800,1722844317330,-774.59,0.00044383,60]
[334223801,1722844317371,-2971.79,0.00044383,60]
[334223802,1722844317412,-192.67192634,0.00044383,60]
[334223803,1722844317462,-1562.84,0.00044383,60]
[334223804,1722844317504,-500.0,0.00044383,60]
[334223805,1722844317545,-4611.19,0.00044383,60]
[334223806,1722844317586,-500.0,0.00044383,60]
[334223807,1722844317627,-729.39,0.00044383,60]
[334223808,1722844317668,-500.0,0.00044383,60]
[334223809,1722844317711,-500.0,0.00044383,60]
[334223810,1722844317752,-574.61,0.00044383,60]
[334223811,1722844317792,-500.0,0.00044383,60]
[334223812,1722844317834,-590.12,0.00044383,60]
[334223813,1722844317874,-2049.21,0.00044383,60]
[334223814,1722844317916,-3397.44,0.00044383,60]
[334223815,1722844317957,-500.0,0.00044383,60]
[334223816,1722844317997,-746.0,0.00044383,60]
[334223817,1722844318039,-500.0,0.00044383,60]
[334223818,1722844318080,-1277.52,0.00044383,60]
[334223819,1722844318124,-1906.76,0.00044383,60]
[334223820,1722844318168,-500.75620247,0.00044383,60]
[334223821,1722844318209,-1650.51,0.00044383,60]
[334223822,1722844318252,-937.35,0.00044383,60]
[334223823,1722844318293,-672.69,0.00044383,60]
[334223824,1722844318334,-500.0,0.00044383,60]
[334223825,1722844318373,-1260.12,0.00044383,60]
[334223826,1722844318413,-500.0,0.00044383,60]
[334223827,1722844318453,-500.0,0.00044383,60]
[334223828,1722844318491,-500.0,0.00044383,60]
[334223829,1722844318529,-587.05,0.00044383,60]
[334223830,1722844318568,-4075.23,0.00044383,60]
[334223831,1722844318606,-500.0,0.00044383,60]
[334223832,1722844318643,-2476.55,0.00044383,60]
[334223833,1722844318681,-500.0,0.00044383,60]
[334223834,1722844318723,-500.0,0.00044383,60]
[334223835,1722844318763,-1674.22,0.00044383,60]
[334223836,1722844318805,-2749.98,0.00044383,60]
[334223837,1722844318848,-500.0,0.00044383,60]
[334223838,1722844318893,-500.0,0.00044383,60]
[334223839,1722844318936,-500.0,0.00044383,60]
[334223840,1722844318981,-500.0,0.00044383,60]
[334223841,1722844319023,-500.0,0.00044383,60]
[334223842,1722844319067,-500.0,0.00044383,60]
[334223843,1722844319112,-500.0,0.00044383,60]
[334223844,1722844319156,-500.0,0.00044383,60]
[334223845,1722844319201,-500.0,0.00044383,60]
[334223846,1722844319243,-1948.21,0.00044383,60]
[334223847,1722844319283,-2571.88,0.00044383,60]
[334223848,1722844319323,-500.0,0.00044383,60]
[334223849,1722844319364,-500.0,0.00044383,60]
[334223850,1722844319404,-517.29,0.00044383,60]
[334223851,1722844319449,-500.0,0.00044383,60]
[334223852,1722844319489,-892.58,0.00044383,60]
[334223853,1722844319529,-500.0,0.00044383,60]
[334223854,1722844319569,-500.0,0.00044383,60]
[334223855,1722844319608,-1692.47,0.00044383,60]
[334223856,1722844319648,-500.0,0.00044383,60]
[334223857,1722844319688,-500.0,0.00044383,60]
[334223858,1722844319731,-502.24290182,0.00044383,60]
[334223859,1722844319770,-500.0,0.00044383,60]
[334223860,1722844319810,-500.0,0.00044383,60]
[334223861,1722844319849,-573.1,0.00044383,60]
[334223862,1722844319889,-500.0,0.00044383,60]
[334223863,1722844319929,-1000.0,0.00044383,60]
[334223864,1722844319969,-780.68,0.00044383,60]
[334223865,1722844320008,-2283.78,0.00044383,60]
[334223866,1722844320048,-500.0,0.00044383,60]
[334223867,1722844320090,-500.0,0.00044383,60]
[334223868,1722844320132,-500.0,0.00044383,60]
[334223869,1722844320390,-500.57301584,0.00044383,60]
[334223870,1722844320437,-500.0,0.00044383,60]
[334223871,1722844320483,-500.0,0.00044383,60]
[334223872,1722844320527,-541.27,0.00044383,60]
[334223873,1722844320571,-500.0,0.00044383,60]
[334223874,1722844320615,-500.0,0.00044383,60]
[334223875,1722844320657,-2155.96,0.00044383,60]
[334223876,1722844320703,-542.87,0.00044383,60]
[334223877,1722844320751,-1149.74,0.00044383,60]
[334223878,1722844320796,-500.0,0.00044383,60]
[334223879,1722844320841,-500.0,0.00044383,60]
[334223880,1722844320884,-500.0,0.00044383,60]
[334223881,1722844320930,-500.0,0.00044383,60]
[334223882,1722844320979,-533.66,0.00044383,60]
[334223883,1722844321023,-834.26,0.00044383,60]
[334223884,1722844321067,-1488.37,0.00044383,60]
[334223885,1722844321110,-1373.07,0.00044383,60]
[334223886,1722844321156,-4234.96,0.00044383,60]
[334223887,1722844321202,-752.69,0.00044383,60]
[334223888,1722844321247,-500.0,0.00044383,60]
[334223889,1722844321290,-587.85,0.00044383,60]
[334223890,1722844321335,-500.0,0.00044383,60]
[334223891,1722844321380,-500.0,0.00044383,60]
[334223892,1722844321427,-500.0,0.00044383,60]
[334223893,1722844321471,-705.68,0.00044383,60]
[334223894,1722844321515,-500.0,0.00044383,60]
[334223895,1722844321559,-942.2,0.00044383,60]
[334223896,1722844321603,-500.0,0.00044383,60]
[334223897,1722844321648,-500.0,0.00044383,60]
[334223898,1722844321693,-500.0,0.00044383,60]
[334223899,1722844321750,-555.38884037,0.00044383,60]
[334223900,1722844321802,-920.47,0.00044383,60]
[334223901,1722844321854,-500.0,0.00044383,60]
[334223902,1722844321901,-500.0,0.00044383,60]
[334223903,1722844321962,-1642.38,0.00044383,60]
[334223904,1722844322010,-1494.69,0.00044383,60]
[334223905,1722844322058,-500.0,0.00044383,60]
[334223906,1722844322105,-500.0,0.00044383,60]
[334223907,1722844322151,-500.0,0.00044383,60]
[334223908,1722844322207,-894.27,0.00044383,60]
[334223909,1722844322253,-611.26,0.00044383,60]
[334223910,1722844322296,-668.81,0.00044383,60]
[334223911,1722844322339,-504.97759649,0.00044383,60]
[334223912,1722844322382,-327.04,0.00044383,60]
[334223913,1722844322428,-827.23,0.00044383,60]
[334223914,1722844322473,-500.0,0.00044383,60]
[334223915,1722844322516,-998.89,0.00044383,60]
[334223916,1722844322558,-756.7,0.00044383,60]
[334223917,1722844322601,-500.0,0.00044383,60]
[334223918,1722844322646,-689.99,0.00044383,60]
[334223919,1722844322689,-500.0,0.00044383,60]
[334223920,1722844322743,-500.0,0.00044383,60]
[334223921,1722844322789,-646.36,0.00044383,60]
[334223922,1722844322834,-500.0,0.00044383,60]
[334223923,1722844322882,-1058.87,0.00044383,60]
[334223924,1722844322926,-1016.88,0.00044383,60]
[334223925,1722844322970,-831.1,0.00044383,60]
[334223926,1722844323016,-500.0,0.00044383,60]
[334223927,1722844323066,-923.06,0.00044383,60]
[334223928,1722844323114,-733.55,0.00044383,60]